[Event "*** Titled Tuesday Blitz"]
[Site "Chess.com"]
[Date "2020.11.24"]
[Round "7"]
[White "tlomigtlis"]
[Black "geordie_derraugh"]
[Result "1/2-1/2"]
[WhiteElo "2579"]
[BlackElo "2472"]
[TimeControl "180+1"]
[EndTime "11:36:33 PST"]
[Termination "Game drawn by stalemate"]

1. d4 {[%clk 0:03:00.9]} 1... Nf6 {[%clk 0:02:59.6]} 2. c4 {[%clk 0:03:00.8]}
2... e6 {[%clk 0:02:59.8]} 3. Nc3 {[%clk 0:03:00]} 3... Bb4 {[%clk 0:02:59.9]}
4. Qc2 {[%clk 0:02:59.6]} 4... c5 {[%clk 0:02:59.6]} 5. dxc5 {[%clk 0:02:58.9]}
5... Qc7 {[%clk 0:02:59.7]} 6. Nf3 {[%clk 0:02:55.5]} 6... a6 {[%clk 0:02:59.3]}
7. a3 {[%clk 0:02:54.9]} 7... Bxc5 {[%clk 0:02:58.8]} 8. Bg5 {[%clk 0:02:54.4]}
8... Be7 {[%clk 0:02:56.3]} 9. e3 {[%clk 0:02:53.9]} 9... b6 {[%clk 0:02:52.6]}
10. Bd3 {[%clk 0:02:53.7]} 10... Bb7 {[%clk 0:02:51.7]} 11. O-O {[%clk
0:02:51.6]} 11... d6 {[%clk 0:02:50.6]} 12. Ne4 {[%clk 0:02:49]} 12... Nbd7
{[%clk 0:02:46.2]} 13. Nd4 {[%clk 0:02:35.1]} 13... Rc8 {[%clk 0:02:23.4]} 14.
Nxf6+ {[%clk 0:02:26.2]} 14... Nxf6 {[%clk 0:01:57.2]} 15. b4 {[%clk 0:02:11.5]}
15... h6 {[%clk 0:01:53.5]} 16. Bh4 {[%clk 0:02:07.7]} 16... d5 {[%clk
0:01:45.7]} 17. Qa4+ {[%clk 0:02:02.1]} 17... Qd7 {[%clk 0:01:37]} 18. Qxd7+
{[%clk 0:01:57.5]} 18... Kxd7 {[%clk 0:01:36.9]} 19. Bxf6 {[%clk 0:01:35.8]}
19... Bxf6 {[%clk 0:01:37.4]} 20. cxd5 {[%clk 0:01:36.3]} 20... exd5 {[%clk
0:01:31.9]} 21. Bf5+ {[%clk 0:01:34.9]} 21... Kd6 {[%clk 0:01:27.1]} 22. Bxc8
{[%clk 0:01:35.8]} 22... Rxc8 {[%clk 0:01:20.3]} 23. Rac1 {[%clk 0:01:34.2]}
23... Rc4 {[%clk 0:01:17.8]} 24. Rfd1 {[%clk 0:01:23.5]} 24... b5 {[%clk
0:01:09.1]} 25. h3 {[%clk 0:01:01.8]} 25... g6 {[%clk 0:00:53.5]} 26. Nb3 {[%clk
0:00:40.9]} 26... Bb2 {[%clk 0:00:46.7]} 27. Rxc4 {[%clk 0:00:39.6]} 27... bxc4
{[%clk 0:00:46.5]} 28. Na5 {[%clk 0:00:40.5]} 28... Kc7 {[%clk 0:00:41.7]} 29.
Nxb7 {[%clk 0:00:21.5]} 29... Kxb7 {[%clk 0:00:40.6]} 30. Rxd5 {[%clk
0:00:19.5]} 30... c3 {[%clk 0:00:15.2]} 31. Rc5 {[%clk 0:00:19.1]} 31... Bxa3
{[%clk 0:00:12.7]} 32. Rxc3 {[%clk 0:00:19.2]} 32... Bxb4 {[%clk 0:00:13.4]} 33.
Rd3 {[%clk 0:00:19.3]} 33... Kc6 {[%clk 0:00:12.9]} 34. Rd4 {[%clk 0:00:17.8]}
34... a5 {[%clk 0:00:12.6]} 35. Rf4 {[%clk 0:00:18.2]} 35... f5 {[%clk
0:00:11.4]} 36. g4 {[%clk 0:00:17.4]} 36... fxg4 {[%clk 0:00:08.7]} 37. hxg4
{[%clk 0:00:17.5]} 37... Kb5 {[%clk 0:00:06.8]} 38. Rf6 {[%clk 0:00:17.3]} 38...
a4 {[%clk 0:00:07.2]} 39. Rxg6 {[%clk 0:00:17.1]} 39... a3 {[%clk 0:00:07.6]}
40. Rg8 {[%clk 0:00:13.5]} 40... a2 {[%clk 0:00:07.5]} 41. Rb8+ {[%clk
0:00:11.1]} 41... Ka4 {[%clk 0:00:07.7]} 42. Ra8+ {[%clk 0:00:08.2]} 42... Ba5
{[%clk 0:00:08]} 43. Rf8 {[%clk 0:00:07.3]} 43... a1=Q+ {[%clk 0:00:07.5]} 44.
Kg2 {[%clk 0:00:07.8]} 44... Qe5 {[%clk 0:00:05.9]} 45. Rf4+ {[%clk 0:00:08]}
45... Kb3 {[%clk 0:00:05.7]} 46. Rf5 {[%clk 0:00:08.4]} 46... Qe4+ {[%clk
0:00:05.7]} 47. f3 {[%clk 0:00:08.5]} 47... Qc2+ {[%clk 0:00:05.9]} 48. Kg3
{[%clk 0:00:07.4]} 48... Bc7+ {[%clk 0:00:06.2]} 49. f4 {[%clk 0:00:07.4]} 49...
Qe4 {[%clk 0:00:05.5]} 50. Kf2 {[%clk 0:00:07.2]} 50... Kc3 {[%clk 0:00:03]} 51.
Rc5+ {[%clk 0:00:04.4]} 51... Kd2 {[%clk 0:00:03.3]} 52. Rxc7 {[%clk 0:00:05]}
52... Qxe3+ {[%clk 0:00:03.7]} 53. Kg2 {[%clk 0:00:05.6]} 53... Qe2+ {[%clk
0:00:03.3]} 54. Kg3 {[%clk 0:00:05.6]} 54... Qe1+ {[%clk 0:00:03.1]} 55. Kf3
{[%clk 0:00:05.5]} 55... Qe3+ {[%clk 0:00:03.1]} 56. Kg2 {[%clk 0:00:06]} 56...
Qxf4 {[%clk 0:00:03.5]} 57. Rd7+ {[%clk 0:00:06.2]} 57... Ke3 {[%clk 0:00:03.4]}
58. Rg7 {[%clk 0:00:07.1]} 58... Qe4+ {[%clk 0:00:03.2]} 59. Kh3 {[%clk
0:00:06.5]} 59... Qf3+ {[%clk 0:00:03.4]} 60. Kh2 {[%clk 0:00:05]} 60... Qf2+
{[%clk 0:00:03.7]} 61. Kh3 {[%clk 0:00:05.3]} 61... Qf1+ {[%clk 0:00:04]} 62.
Kg3 {[%clk 0:00:04.8]} 62... Qg1+ {[%clk 0:00:03.9]} 63. Kh3 {[%clk 0:00:04.6]}
63... Kf4 {[%clk 0:00:04.3]} 64. Rf7+ {[%clk 0:00:04.6]} 64... Kg5 {[%clk
0:00:04.6]} 65. Rf5+ {[%clk 0:00:05]} 65... Kg6 {[%clk 0:00:04.8]} 66. Rf3
{[%clk 0:00:05.8]} 66... Qd1 {[%clk 0:00:04.3]} 67. Rg3 {[%clk 0:00:05.8]} 67...
Qd4 {[%clk 0:00:04.3]} 68. Kh4 {[%clk 0:00:05.7]} 68... Qf2 {[%clk 0:00:03.9]}
69. Kh3 {[%clk 0:00:05.3]} 69... Kg5 {[%clk 0:00:04.4]} 70. Rg2 {[%clk
0:00:05.3]} 70... Qf3+ {[%clk 0:00:04.4]} 71. Kh2 {[%clk 0:00:04.3]} 71... Qf4+
{[%clk 0:00:04.7]} 72. Kh3 {[%clk 0:00:03.1]} 72... h5 {[%clk 0:00:04.3]} 73.
gxh5+ {[%clk 0:00:03.3]} 73... Kxh5 {[%clk 0:00:05.2]} 74. Rg3 {[%clk
0:00:03.3]} 74... Qf1+ {[%clk 0:00:05.3]} 75. Kh2 {[%clk 0:00:03.2]} 75... Qf2+
{[%clk 0:00:04.9]} 76. Rg2 {[%clk 0:00:03.6]} 76... Qf3 {[%clk 0:00:04.4]} 77.
Kg1 {[%clk 0:00:03.6]} 77... Kh4 {[%clk 0:00:04.3]} 78. Rh2+ {[%clk 0:00:03.7]}
78... Kg4 {[%clk 0:00:04.4]} 79. Rg2+ {[%clk 0:00:04]} 79... Kh5 {[%clk
0:00:03.6]} 80. Rh2+ {[%clk 0:00:04.4]} 80... Kg4 {[%clk 0:00:03.9]} 81. Rg2+
{[%clk 0:00:04.8]} 81... Kh3 {[%clk 0:00:04.1]} 82. Rh2+ {[%clk 0:00:04.7]}
82... Kg3 {[%clk 0:00:03.8]} 83. Rh3+ {[%clk 0:00:05]} 83... Kxh3 {[%clk
0:00:04.5]} 1/2-1/2

[Event "*** Titled Tuesday Blitz"]
[Site "Chess.com"]
[Date "2020.11.24"]
[Round "7"]
[White "FMOlexandrProhorov"]
[Black "Chessdude1987"]
[Result "1-0"]
[WhiteElo "2199"]
[BlackElo "2344"]
[TimeControl "180+1"]
[EndTime "11:36:37 PST"]
[Termination "FMOlexandrProhorov won by checkmate"]

1. e4 {[%clk 0:03:00.9]} 1... e6 {[%clk 0:02:59.9]} 2. d4 {[%clk 0:02:57.5]}
2... d5 {[%clk 0:03:00.3]} 3. Nc3 {[%clk 0:02:57.4]} 3... Nf6 {[%clk 0:03:00.7]}
4. Bg5 {[%clk 0:02:55.5]} 4... dxe4 {[%clk 0:03:01]} 5. Nxe4 {[%clk 0:02:54.2]}
5... Be7 {[%clk 0:03:01.4]} 6. Bxf6 {[%clk 0:02:54.4]} 6... gxf6 {[%clk
0:03:01.6]} 7. g3 {[%clk 0:02:51.7]} 7... f5 {[%clk 0:03:00.1]} 8. Nc3 {[%clk
0:02:50]} 8... Nd7 {[%clk 0:02:39.6]} 9. Bg2 {[%clk 0:02:47.8]} 9... Nf6 {[%clk
0:02:37]} 10. Nge2 {[%clk 0:02:42.2]} 10... c5 {[%clk 0:02:34.6]} 11. dxc5
{[%clk 0:02:37.8]} 11... Bxc5 {[%clk 0:02:26.4]} 12. O-O {[%clk 0:02:25.3]}
12... Qxd1 {[%clk 0:02:16.8]} 13. Raxd1 {[%clk 0:02:24]} 13... a6 {[%clk
0:02:16.8]} 14. Nf4 {[%clk 0:02:07.3]} 14... Rb8 {[%clk 0:02:01.4]} 15. Nd3
{[%clk 0:02:03.2]} 15... Bd6 {[%clk 0:01:53.4]} 16. Rfe1 {[%clk 0:01:58.8]}
16... b5 {[%clk 0:01:34.1]} 17. Ne5 {[%clk 0:01:56]} 17... Bxe5 {[%clk
0:01:25.2]} 18. Rxe5 {[%clk 0:01:55.5]} 18... Bb7 {[%clk 0:01:25]} 19. Bxb7
{[%clk 0:01:51.9]} 19... Rxb7 {[%clk 0:01:24.9]} 20. Rc5 {[%clk 0:01:52.1]}
20... Ke7 {[%clk 0:01:20.4]} 21. Rc6 {[%clk 0:01:52]} 21... b4 {[%clk
0:01:10.1]} 22. Na4 {[%clk 0:01:51.1]} 22... Ra8 {[%clk 0:00:57.5]} 23. Rdd6
{[%clk 0:01:50.3]} 23... a5 {[%clk 0:00:41.4]} 24. Ra6 {[%clk 0:01:46.5]} 24...
Rba7 {[%clk 0:00:41.3]} 25. Rxa7+ {[%clk 0:01:40.1]} 25... Rxa7 {[%clk
0:00:41.2]} 26. Rb6 {[%clk 0:01:37.1]} 26... Nd5 {[%clk 0:00:39.8]} 27. Rb8
{[%clk 0:01:37.3]} 27... Rc7 {[%clk 0:00:39.2]} 28. Ra8 {[%clk 0:01:01]} 28...
Rxc2 {[%clk 0:00:38.9]} 29. Rxa5 {[%clk 0:01:01]} 29... f4 {[%clk 0:00:34.7]}
30. Ra7+ {[%clk 0:00:51.8]} 30... Kf6 {[%clk 0:00:34.6]} 31. gxf4 {[%clk
0:00:48.6]} 31... Nxf4 {[%clk 0:00:34.5]} 32. h4 {[%clk 0:00:44.8]} 32... Nd3
{[%clk 0:00:33.2]} 33. Rb7 {[%clk 0:00:39.7]} 33... Nxf2 {[%clk 0:00:32]} 34.
Rxb4 {[%clk 0:00:37.9]} 34... Nh3+ {[%clk 0:00:31]} 35. Kf1 {[%clk 0:00:31.2]}
35... Rf2+ {[%clk 0:00:28.8]} 36. Ke1 {[%clk 0:00:31]} 36... Rf5 {[%clk
0:00:26.5]} 37. Rb7 {[%clk 0:00:30.8]} 37... Nf4 {[%clk 0:00:25.8]} 38. b4
{[%clk 0:00:29.9]} 38... Nd5 {[%clk 0:00:25.4]} 39. b5 {[%clk 0:00:29.4]} 39...
Rf4 {[%clk 0:00:25.7]} 40. Nc5 {[%clk 0:00:28.8]} 40... Rxh4 {[%clk 0:00:24.2]}
41. Nd7+ {[%clk 0:00:28.7]} 41... Kf5 {[%clk 0:00:23.2]} 42. b6 {[%clk
0:00:28.7]} 42... Ra4 {[%clk 0:00:21.8]} 43. Ra7 {[%clk 0:00:27.7]} 43... Rb4
{[%clk 0:00:20.7]} 44. b7 {[%clk 0:00:24.3]} 44... h5 {[%clk 0:00:20.2]} 45.
b8=Q {[%clk 0:00:24.2]} 45... Rxb8 {[%clk 0:00:19]} 46. Nxb8 {[%clk 0:00:25.1]}
46... h4 {[%clk 0:00:18.8]} 47. Rxf7+ {[%clk 0:00:24.9]} 47... Kg4 {[%clk
0:00:18.1]} 48. Nd7 {[%clk 0:00:23.8]} 48... h3 {[%clk 0:00:17.8]} 49. Ne5+
{[%clk 0:00:23.2]} 49... Kg3 {[%clk 0:00:17.5]} 50. Rg7+ {[%clk 0:00:20.4]}
50... Kf4 {[%clk 0:00:16.9]} 51. Nd3+ {[%clk 0:00:18.8]} 51... Ke3 {[%clk
0:00:16.9]} 52. Nf2 {[%clk 0:00:18.2]} 52... Nf4 {[%clk 0:00:16.4]} 53. Rh7
{[%clk 0:00:16.9]} 53... Ng2+ {[%clk 0:00:14.3]} 54. Kf1 {[%clk 0:00:16.9]}
54... Nf4 {[%clk 0:00:13.3]} 55. Nxh3 {[%clk 0:00:16]} 55... Nd3 {[%clk
0:00:13.2]} 56. Ng5 {[%clk 0:00:14.1]} 56... e5 {[%clk 0:00:10.5]} 57. a4 {[%clk
0:00:13.7]} 57... Nc5 {[%clk 0:00:10.5]} 58. a5 {[%clk 0:00:13.7]} 58... Kd3
{[%clk 0:00:10.4]} 59. Rc7 {[%clk 0:00:12.1]} 59... Na6 {[%clk 0:00:10.1]} 60.
Rc6 {[%clk 0:00:11.8]} 60... Nb4 {[%clk 0:00:10.2]} 61. Rb6 {[%clk 0:00:10.6]}
61... Nd5 {[%clk 0:00:09.3]} 62. Rb7 {[%clk 0:00:09.4]} 62... e4 {[%clk
0:00:06]} 63. a6 {[%clk 0:00:09.1]} 63... Ne3+ {[%clk 0:00:05.6]} 64. Kf2 {[%clk
0:00:08.8]} 64... Ng4+ {[%clk 0:00:05.5]} 65. Kg3 {[%clk 0:00:08.8]} 65... e3
{[%clk 0:00:05.4]} 66. a7 {[%clk 0:00:07.9]} 66... e2 {[%clk 0:00:05.3]} 67. Re7
{[%clk 0:00:08.3]} 67... Ne3 {[%clk 0:00:04.7]} 68. Rxe3+ {[%clk 0:00:06.4]}
68... Kxe3 {[%clk 0:00:04.6]} 69. Nf3 {[%clk 0:00:07.3]} 69... e1=Q+ {[%clk
0:00:02.5]} 70. Nxe1 {[%clk 0:00:07.5]} 70... Kd4 {[%clk 0:00:02.8]} 71. a8=Q
{[%clk 0:00:08.3]} 71... Kc4 {[%clk 0:00:02.8]} 72. Kf4 {[%clk 0:00:08]} 72...
Kd4 {[%clk 0:00:03.7]} 73. Qd8+ {[%clk 0:00:06.2]} 73... Kc4 {[%clk 0:00:04.6]}
74. Ke4 {[%clk 0:00:06.3]} 74... Kb3 {[%clk 0:00:04.3]} 75. Kd3 {[%clk
0:00:06.4]} 75... Kb4 {[%clk 0:00:04.5]} 76. Qb6+ {[%clk 0:00:06.9]} 76... Ka3
{[%clk 0:00:04.7]} 77. Kc3 {[%clk 0:00:07]} 77... Ka2 {[%clk 0:00:05.3]} 78.
Qb2# {[%clk 0:00:07.2]} 1-0

[Event "*** Titled Tuesday Blitz"]
[Site "Chess.com"]
[Date "2020.11.24"]
[Round "7"]
[White "JoliyRoger"]
[Black "SchmakAttack"]
[Result "0-1"]
[WhiteElo "2364"]
[BlackElo "2509"]
[TimeControl "180+1"]
[EndTime "11:36:40 PST"]
[Termination "SchmakAttack won on time"]

1. Nf3 {[%clk 0:03:00.9]} 1... Nf6 {[%clk 0:02:59.1]} 2. c4 {[%clk 0:03:01.3]}
2... e6 {[%clk 0:02:59.1]} 3. d4 {[%clk 0:03:01.7]} 3... d5 {[%clk 0:02:59.3]}
4. cxd5 {[%clk 0:02:48.8]} 4... exd5 {[%clk 0:02:58.9]} 5. Nc3 {[%clk
0:02:49.7]} 5... Bd6 {[%clk 0:02:57]} 6. Bg5 {[%clk 0:02:50]} 6... c6 {[%clk
0:02:57.3]} 7. e3 {[%clk 0:02:50.2]} 7... O-O {[%clk 0:02:51.2]} 8. Bd3 {[%clk
0:02:50.5]} 8... Re8 {[%clk 0:02:40.1]} 9. Qc2 {[%clk 0:02:49.3]} 9... h6 {[%clk
0:02:36.9]} 10. Bh4 {[%clk 0:02:49.5]} 10... Nbd7 {[%clk 0:02:37]} 11. Bg3
{[%clk 0:02:49]} 11... Qe7 {[%clk 0:02:29.8]} 12. a3 {[%clk 0:02:34.7]} 12... b6
{[%clk 0:01:55.3]} 13. O-O {[%clk 0:02:13.8]} 13... Bb7 {[%clk 0:01:52]} 14. b4
{[%clk 0:02:11]} 14... Bxg3 {[%clk 0:01:47.9]} 15. hxg3 {[%clk 0:02:11.4]} 15...
Ne4 {[%clk 0:01:48.2]} 16. Rac1 {[%clk 0:02:04.2]} 16... a5 {[%clk 0:01:17.3]}
17. Bxe4 {[%clk 0:01:45.5]} 17... dxe4 {[%clk 0:01:16.5]} 18. Nd2 {[%clk
0:01:46.2]} 18... axb4 {[%clk 0:01:13.1]} 19. axb4 {[%clk 0:01:46.6]} 19... Qxb4
{[%clk 0:01:09.4]} 20. Ncxe4 {[%clk 0:01:35.7]} 20... Qe7 {[%clk 0:01:09.1]} 21.
Nc3 {[%clk 0:01:26.5]} 21... c5 {[%clk 0:01:07.5]} 22. d5 {[%clk 0:01:14.7]}
22... Ne5 {[%clk 0:00:55]} 23. Nf3 {[%clk 0:01:08.3]} 23... Nxf3+ {[%clk
0:00:36.9]} 24. gxf3 {[%clk 0:01:08.2]} 24... Qf6 {[%clk 0:00:37.6]} 25. Kg2
{[%clk 0:01:02.7]} 25... b5 {[%clk 0:00:15.9]} 26. Nxb5 {[%clk 0:00:54.8]} 26...
Bxd5 {[%clk 0:00:13]} 27. e4 {[%clk 0:00:55.3]} 27... Ra2 {[%clk 0:00:06.5]} 28.
Qc3 {[%clk 0:00:54.6]} 28... Be6 {[%clk 0:00:03.2]} 29. Qxf6 {[%clk 0:00:39.1]}
29... gxf6 {[%clk 0:00:04.1]} 30. Rxc5 {[%clk 0:00:39.1]} 30... Rd8 {[%clk
0:00:04.8]} 31. Nc7 {[%clk 0:00:22.8]} 31... Bb3 {[%clk 0:00:03.8]} 32. Nd5
{[%clk 0:00:22.2]} 32... Bxd5 {[%clk 0:00:03.8]} 33. exd5 {[%clk 0:00:20.4]}
33... Rd2 {[%clk 0:00:03.7]} 34. Rc6 {[%clk 0:00:20.9]} 34... Kg7 {[%clk
0:00:03.7]} 35. Rh1 {[%clk 0:00:21.4]} 35... R2xd5 {[%clk 0:00:03.6]} 36. Rh4
{[%clk 0:00:22]} 36... Rg5 {[%clk 0:00:03.5]} 37. Rf4 {[%clk 0:00:21.1]} 37...
Rg6 {[%clk 0:00:04.2]} 38. Rf5 {[%clk 0:00:21.3]} 38... Rd4 {[%clk 0:00:04.1]}
39. g4 {[%clk 0:00:20.1]} 39... Rd2 {[%clk 0:00:04]} 40. Kg3 {[%clk 0:00:20.3]}
40... Rd1 {[%clk 0:00:04.7]} 41. Kg2 {[%clk 0:00:18.8]} 41... Rd2 {[%clk
0:00:05.4]} 42. Rc8 {[%clk 0:00:17.8]} 42... Rd1 {[%clk 0:00:05.7]} 43. Ra5
{[%clk 0:00:16.8]} 43... Rd7 {[%clk 0:00:04.7]} 44. Raa8 {[%clk 0:00:16.7]}
44... f5 {[%clk 0:00:05.1]} 45. Rg8+ {[%clk 0:00:15.6]} 45... Kf6 {[%clk
0:00:05.7]} 46. Ra6+ {[%clk 0:00:16.2]} 46... Kg5 {[%clk 0:00:06]} 47. Rgxg6+
{[%clk 0:00:11.1]} 47... fxg6 {[%clk 0:00:06.9]} 48. Kg3 {[%clk 0:00:10.7]}
48... fxg4 {[%clk 0:00:04.2]} 49. fxg4 {[%clk 0:00:11.1]} 49... Rd3+ {[%clk
0:00:03.1]} 50. f3 {[%clk 0:00:11.7]} 50... h5 {[%clk 0:00:03.8]} 51. Ra5+
{[%clk 0:00:12.3]} 51... Kh6 {[%clk 0:00:04.3]} 52. g5+ {[%clk 0:00:11.6]} 52...
Kg7 {[%clk 0:00:04.2]} 53. Ra7+ {[%clk 0:00:12.2]} 53... Kf8 {[%clk 0:00:04.8]}
54. Ra6 {[%clk 0:00:12.8]} 54... Kf7 {[%clk 0:00:05.2]} 55. Rf6+ {[%clk
0:00:13.4]} 55... Kg7 {[%clk 0:00:05.7]} 56. Rf4 {[%clk 0:00:13.8]} 56... Rd5
{[%clk 0:00:06.2]} 57. Kh4 {[%clk 0:00:14.4]} 57... Rd1 {[%clk 0:00:06.2]} 58.
Rf6 {[%clk 0:00:14]} 58... Rh1+ {[%clk 0:00:07.1]} 59. Kg3 {[%clk 0:00:14.5]}
59... Rg1+ {[%clk 0:00:08]} 60. Kf4 {[%clk 0:00:15.1]} 60... h4 {[%clk
0:00:08.4]} 61. Rc6 {[%clk 0:00:14.8]} 61... h3 {[%clk 0:00:09]} 62. Rc2 {[%clk
0:00:15.3]} 62... Rg2 {[%clk 0:00:09.2]} 63. Rc1 {[%clk 0:00:14.8]} 63... h2
{[%clk 0:00:09.5]} 64. Rh1 {[%clk 0:00:15.4]} 64... Kf7 {[%clk 0:00:09.4]} 65.
Ke4 {[%clk 0:00:15.5]} 65... Ke6 {[%clk 0:00:09.9]} 66. f4 {[%clk 0:00:16.1]}
66... Ra2 {[%clk 0:00:09.3]} 67. Re1 {[%clk 0:00:16]} 67... Re2+ {[%clk
0:00:07.6]} 68. Rxe2 {[%clk 0:00:15.9]} 68... h1=Q+ {[%clk 0:00:08.3]} 69. Kd4+
{[%clk 0:00:15.5]} 69... Kf5 {[%clk 0:00:08.9]} 70. Re3 {[%clk 0:00:14.9]} 70...
Kxf4 {[%clk 0:00:08.6]} 71. Re6 {[%clk 0:00:14.6]} 71... Qd1+ {[%clk 0:00:08]}
72. Kc5 {[%clk 0:00:14.5]} 72... Kxg5 {[%clk 0:00:07.1]} 73. Re5+ {[%clk
0:00:15.1]} 73... Kh4 {[%clk 0:00:07.4]} 74. Re4+ {[%clk 0:00:14.9]} 74... Kg3
{[%clk 0:00:07.4]} 75. Re3+ {[%clk 0:00:15.1]} 75... Kf4 {[%clk 0:00:07]} 76.
Re6 {[%clk 0:00:15.1]} 76... g5 {[%clk 0:00:07.3]} 77. Rd6 {[%clk 0:00:15.2]}
77... Qxd6+ {[%clk 0:00:06.4]} 78. Kxd6 {[%clk 0:00:15]} 78... g4 {[%clk
0:00:07.3]} 0-1

[Event "*** Titled Tuesday Blitz"]
[Site "Chess.com"]
[Date "2020.11.24"]
[Round "7"]
[White "djano"]
[Black "ViktoriyaTarasova"]
[Result "1/2-1/2"]
[WhiteElo "2459"]
[BlackElo "2299"]
[TimeControl "180+1"]
[EndTime "11:36:42 PST"]
[Termination "Game drawn - insufficient material"]

1. d4 {[%clk 0:03:00.9]} 1... Nf6 {[%clk 0:02:59.7]} 2. Bf4 {[%clk 0:03:00.4]}
2... e6 {[%clk 0:02:59.7]} 3. Nf3 {[%clk 0:02:59.4]} 3... c5 {[%clk 0:02:58.2]}
4. e3 {[%clk 0:02:55.4]} 4... Nc6 {[%clk 0:02:57.8]} 5. Nbd2 {[%clk 0:02:52.4]}
5... d5 {[%clk 0:02:57]} 6. c3 {[%clk 0:02:51.5]} 6... cxd4 {[%clk 0:02:56.3]}
7. exd4 {[%clk 0:02:45.3]} 7... Bd6 {[%clk 0:02:55.8]} 8. Bg3 {[%clk 0:02:45.5]}
8... O-O {[%clk 0:02:54.7]} 9. Bd3 {[%clk 0:02:45.6]} 9... Ne7 {[%clk
0:02:47.6]} 10. Qc2 {[%clk 0:02:37.2]} 10... Nf5 {[%clk 0:02:46.5]} 11. Ne5
{[%clk 0:02:29.6]} 11... h6 {[%clk 0:02:42]} 12. Ndf3 {[%clk 0:02:27.5]} 12...
Qe7 {[%clk 0:02:29]} 13. O-O {[%clk 0:02:25.1]} 13... Nxg3 {[%clk 0:02:26.2]}
14. hxg3 {[%clk 0:02:25.7]} 14... b6 {[%clk 0:02:23.6]} 15. a4 {[%clk
0:02:23.1]} 15... a5 {[%clk 0:02:18.7]} 16. Rfe1 {[%clk 0:02:22.8]} 16... Bb7
{[%clk 0:02:16.9]} 17. g4 {[%clk 0:02:12]} 17... Ne4 {[%clk 0:02:10.1]} 18. Nd2
{[%clk 0:02:06.3]} 18... Bxe5 {[%clk 0:02:01.3]} 19. dxe5 {[%clk 0:02:02.4]}
19... Nc5 {[%clk 0:01:48.9]} 20. Bb5 {[%clk 0:01:59]} 20... Ba6 {[%clk
0:01:44.1]} 21. Bxa6 {[%clk 0:01:58.6]} 21... Nxa6 {[%clk 0:01:43.5]} 22. Nf3
{[%clk 0:01:51.5]} 22... Rac8 {[%clk 0:01:42.8]} 23. g3 {[%clk 0:01:46.7]} 23...
Rfd8 {[%clk 0:01:32]} 24. Kg2 {[%clk 0:01:43.8]} 24... d4 {[%clk 0:01:19.5]} 25.
Rad1 {[%clk 0:01:43.4]} 25... dxc3 {[%clk 0:01:16.4]} 26. bxc3 {[%clk
0:01:43.3]} 26... Nc5 {[%clk 0:01:13.4]} 27. Rd4 {[%clk 0:01:35]} 27... Qb7
{[%clk 0:01:03]} 28. Red1 {[%clk 0:01:28.2]} 28... Rd7 {[%clk 0:01:02]} 29. Qe2
{[%clk 0:01:08.9]} 29... Rcd8 {[%clk 0:01:00.4]} 30. Kh2 {[%clk 0:01:06.9]}
30... Nxa4 {[%clk 0:00:54.1]} 31. Rc1 {[%clk 0:00:23.3]} 31... Nc5 {[%clk
0:00:51.6]} 32. Rcd1 {[%clk 0:00:15.8]} 32... a4 {[%clk 0:00:48.5]} 33. g5
{[%clk 0:00:14.6]} 33... h5 {[%clk 0:00:39.2]} 34. g6 {[%clk 0:00:15]} 34...
fxg6 {[%clk 0:00:37.1]} 35. Nh4 {[%clk 0:00:15.3]} 35... Nb3 {[%clk 0:00:31]}
36. Rxd7 {[%clk 0:00:14.2]} 36... Rxd7 {[%clk 0:00:31.6]} 37. Rxd7 {[%clk
0:00:13.6]} 37... Qxd7 {[%clk 0:00:30.9]} 38. Nxg6 {[%clk 0:00:13.7]} 38... Qd2
{[%clk 0:00:23.6]} 39. Qf3 {[%clk 0:00:14]} 39... Qd8 {[%clk 0:00:13.6]} 40.
Qxh5 {[%clk 0:00:14]} 40... Kf7 {[%clk 0:00:11.4]} 41. Nf4+ {[%clk 0:00:13.4]}
41... Ke7 {[%clk 0:00:11.6]} 42. Qg5+ {[%clk 0:00:13.4]} 42... Kd7 {[%clk
0:00:11.7]} 43. Qxg7+ {[%clk 0:00:12.4]} 43... Kc6 {[%clk 0:00:12.3]} 44. Nxe6
{[%clk 0:00:11.4]} 44... Qd2 {[%clk 0:00:10.8]} 45. Qc7+ {[%clk 0:00:10.7]}
45... Kb5 {[%clk 0:00:11.2]} 46. c4+ {[%clk 0:00:08.5]} 46... Ka5 {[%clk
0:00:09.8]} 47. Qa7+ {[%clk 0:00:08.1]} 47... Kb4 {[%clk 0:00:10.4]} 48. Qe7+
{[%clk 0:00:07.9]} 48... Kc3 {[%clk 0:00:09.8]} 49. c5 {[%clk 0:00:06.1]} 49...
Qxf2+ {[%clk 0:00:09.1]} 50. Kh3 {[%clk 0:00:06.4]} 50... Qf5+ {[%clk
0:00:08.6]} 51. g4 {[%clk 0:00:07]} 51... Qf3+ {[%clk 0:00:08.3]} 52. Kh4 {[%clk
0:00:06.6]} 52... Qf2+ {[%clk 0:00:07.7]} 53. Kh5 {[%clk 0:00:05.8]} 53... Qh2+
{[%clk 0:00:06.1]} 54. Kg6 {[%clk 0:00:05]} 54... Qxe5 {[%clk 0:00:05.4]} 55. c6
{[%clk 0:00:04.4]} 55... Qe4+ {[%clk 0:00:05.9]} 56. Kf7 {[%clk 0:00:04.1]}
56... Qxc6 {[%clk 0:00:06.2]} 57. g5 {[%clk 0:00:05]} 57... b5 {[%clk
0:00:05.7]} 58. g6 {[%clk 0:00:05.3]} 58... Qf3+ {[%clk 0:00:05.9]} 59. Qf6+
{[%clk 0:00:05.4]} 59... Qxf6+ {[%clk 0:00:05.8]} 60. Kxf6 {[%clk 0:00:06.3]}
60... a3 {[%clk 0:00:06]} 61. g7 {[%clk 0:00:07.2]} 61... a2 {[%clk 0:00:06.9]}
62. g8=Q {[%clk 0:00:08.1]} 62... a1=Q {[%clk 0:00:07.2]} 63. Kf7 {[%clk
0:00:07.3]} 63... Qf1+ {[%clk 0:00:06.9]} 64. Ke7 {[%clk 0:00:07.5]} 64... Kb2
{[%clk 0:00:05.6]} 65. Qh8+ {[%clk 0:00:07.8]} 65... Ka3 {[%clk 0:00:05.4]} 66.
Qc3 {[%clk 0:00:07.8]} 66... Qc4 {[%clk 0:00:03.9]} 67. Qe3 {[%clk 0:00:07.3]}
67... Kb2 {[%clk 0:00:03]} 68. Qe5+ {[%clk 0:00:06.9]} 68... Qc3 {[%clk
0:00:02.7]} 69. Qe2+ {[%clk 0:00:07.4]} 69... Qc2 {[%clk 0:00:02.8]} 70. Qxb5
{[%clk 0:00:07.7]} 70... Qc3 {[%clk 0:00:03.1]} 71. Qd5 {[%clk 0:00:07.3]} 71...
Kc2 {[%clk 0:00:03]} 72. Qe4+ {[%clk 0:00:07.1]} 72... Kb2 {[%clk 0:00:02.9]}
73. Qe2+ {[%clk 0:00:07.4]} 73... Qc2 {[%clk 0:00:02.8]} 74. Qxc2+ {[%clk
0:00:07.6]} 74... Kxc2 {[%clk 0:00:02.5]} 1/2-1/2